fUSD/lending_fUSD_20250514
["ID","MTS","AMOUNT","RATE_DAILY","PERIOD"]
[361038346,1747209196942,-14823.04129833,0.00041933,2]
[361038347,1747209196951,-23105.98626587,0.00041933,2]
[361038348,1747209196960,-6790.3435026,0.00041933,4]
[361038349,1747209196969,-5211.31306841,0.00041933,4]
[361038350,1747209196979,-24721.39872221,0.00041933,5]
[361038351,1747209196990,-2560.98916162,0.00041933,2]
[361038352,1747209197000,-14108.12908539,0.00041933,2]
[361038353,1747209197009,-7000.11005666,0.00041933,2]
[361038354,1747209197019,-20302.26849351,0.00041933,2]
[361038355,1747209197028,-10870.50755273,0.00041933,2]
[361038356,1747209197038,-8181.41211717,0.00041933,2]
[361038357,1747209197049,-5699.46367237,0.00041933,2]
[361038358,1747209197058,-4592.47642076,0.00041933,2]
[361038359,1747209197067,-30000.0,0.00041933,2]
[361038360,1747209197076,-7502.70478783,0.00041933,2]
[361038361,1747209197086,-100292.17434644,0.00041933,2]
[361038362,1747209197095,-1044.0,0.00041933,2]
[361038363,1747209197104,-161.4,0.00041933,2]
[361038364,1747209197114,-319.53508533,0.00041933,16]
[361038365,1747209197124,-922.0,0.00041933,3]
[361038366,1747209197133,-4060.06024807,0.00041933,2]
[361038367,1747209197143,-1112.0968816,0.00041933,2]
[361038368,1747209197153,-160.0,0.00041933,30]
[361038369,1747209197162,-160.0,0.00041933,30]
[361038370,1747209197172,-160.0,0.00041933,30]
[361038371,1747209197182,-160.0,0.00041933,30]
[361038372,1747209197191,-160.0,0.00041933,30]
[361038373,1747209197201,-160.0,0.00041933,30]
[361038374,1747209197211,-160.0,0.00041933,30]
[361038375,1747209197220,-160.0,0.00041933,30]
[361038376,1747209197230,-160.0,0.00041933,30]
[361038377,1747209197240,-160.0,0.00041933,30]
[361038378,1747209197249,-160.0,0.00041933,30]
[361038379,1747209197259,-160.0,0.00041933,30]
[361038380,1747209197269,-160.0,0.00041933,30]
[361038381,1747209197279,-160.0,0.00041933,30]
[361038382,1747209197288,-1081.04429478,0.00041933,30]
[361038383,1747209197298,-208.5,0.00041933,30]
[361038384,1747209197308,-1000.0,0.00041933,30]
[361038385,1747209197318,-7943.25533644,0.00041933,120]
[361038386,1747209197328,-2324.9210444,0.00041933,120]
[361038387,1747209197337,-262.94564165,0.00041933,30]
[361038388,1747209197348,-884.0,0.00041933,30]
[361038389,1747209197358,-1201.0,0.00041933,30]
[361038390,1747209197367,-526.34697771,0.00041933,30]
[361038391,1747209197377,-665.0,0.00041933,120]
[361038392,1747209197387,-500.0,0.00041933,120]
[361038393,1747209197399,-500.0,0.00041933,120]
[361038394,1747209197409,-261.86618251,0.00041933,120]
[361038395,1747209197418,-1973.0,0.00041933,30]
[361038396,1747209197428,-2375.34,0.00041933,120]
[361038397,1747209197439,-2375.34,0.00041933,120]
[361038398,1747209197449,-2375.34,0.00041933,120]
[361038399,1747209197459,-2375.34,0.00041933,120]
[361038400,1747209197469,-2375.34,0.00041933,120]
[361038401,1747209197479,-2375.34,0.00041933,120]
[361038402,1747209197489,-2375.34,0.00041933,120]
[361038403,1747209197499,-2375.34,0.00041933,120]
[361038404,1747209197508,-2375.34,0.00041933,120]
[361038405,1747209197518,-2375.34,0.00041933,120]
[361038406,1747209197527,-2375.34,0.00041933,120]
[361038407,1747209197537,-428.05904603,0.00041933,30]
[361038408,1747209197548,-2375.34,0.00041933,120]
[361038409,1747209197558,-2375.34,0.00041933,120]
[361038410,1747209197568,-2375.34,0.00041933,120]
[361038411,1747209197579,-2375.34,0.00041933,120]
[361038412,1747209197589,-2375.34,0.00041933,120]
[361038413,1747209197599,-2375.34,0.00041933,120]
[361038414,1747209197608,-2375.34,0.00041933,120]
[361038415,1747209197617,-2375.34,0.00041933,120]
[361038416,1747209197627,-2375.34,0.00041933,120]
[361038417,1747209197638,-2375.34,0.00041933,120]
[361038418,1747209197648,-2375.34,0.00041933,120]
[361038419,1747209197658,-2375.34,0.00041933,120]
[361038420,1747209197668,-2375.53736047,0.00041933,120]
[361038421,1747209197678,-201.0,0.00041933,31]
[361038422,1747209197687,-200.0,0.00041933,31]
[361038423,1747209197696,-161.599999,0.00041933,30]
[361038424,1747209197706,-160.0,0.00041933,30]
[361038425,1747209197715,-160.0,0.00041933,30]
[361038426,1747209197725,-160.0,0.00041933,30]
[361038427,1747209197735,-160.0,0.00041933,30]
[361038428,1747209197744,-160.0,0.00041933,30]
[361038429,1747209197754,-160.0,0.00041933,30]
[361038430,1747209197764,-160.0,0.00041933,30]
[361038431,1747209197774,-160.0,0.00041933,30]
[361038432,1747209197784,-160.0,0.00041933,30]
[361038433,1747209197794,-160.0,0.00041933,30]
[361038434,1747209197805,-160.0,0.00041933,30]
[361038435,1747209197815,-160.0,0.00041933,30]
[361038436,1747209197825,-160.0,0.00041933,30]
[361038437,1747209197835,-160.0,0.00041933,30]
[361038438,1747209197845,-160.0,0.00041933,30]
[361038439,1747209197856,-160.0,0.00041933,30]
[361038440,1747209197865,-160.0,0.00041933,30]
[361038441,1747209197875,-160.0,0.00041933,30]
[361038442,1747209197885,-160.0,0.00041933,30]
[361038443,1747209197896,-160.0,0.00041933,30]
[361038444,1747209197905,-160.0,0.00041933,30]
[361038445,1747209197915,-160.0,0.00041933,30]
[361038446,1747209197924,-160.0,0.00041933,30]
[361038447,1747209197934,-221.8,0.00041933,30]
[361038448,1747209197943,-162.14579999,0.00041933,120]
[361038449,1747209197953,-374.02130731,0.00041933,60]
[361038450,1747209197962,-500.0,0.00041933,120]
[361038451,1747209197972,-500.0,0.00041933,120]
[361038452,1747209197981,-500.0,0.00041933,120]
[361038453,1747209197991,-500.0,0.00041933,120]
[361038454,1747209198001,-500.0,0.00041933,120]
[361038455,1747209198010,-160.75821288,0.00041933,120]
[361038456,1747209198021,-1564.81,0.00041933,120]
[361038457,1747209198030,-1564.81,0.00041933,120]
[361038458,1747209198040,-1564.81,0.00041933,120]
[361038459,1747209198050,-1564.81,0.00041933,120]
[361038460,1747209198060,-1564.81,0.00041933,120]
[361038461,1747209198069,-1564.81,0.00041933,120]
[361038462,1747209198079,-1564.81,0.00041933,120]
[361038463,1747209198090,-1564.81,0.00041933,120]
[361038464,1747209198100,-1564.81,0.00041933,120]
[361038465,1747209198110,-1564.81,0.00041933,120]
[361038466,1747209198120,-1564.81,0.00041933,120]
[361038467,1747209198130,-1564.81,0.00041933,120]
[361038468,1747209198140,-1564.81,0.00041933,120]
[361038469,1747209198149,-1564.81,0.00041933,120]
[361038470,1747209198159,-1564.81,0.00041933,120]
[361038471,1747209198169,-1564.81,0.00041933,120]
[361038472,1747209198179,-1564.81,0.00041933,120]
[361038473,1747209198189,-1564.81,0.00041933,120]
[361038474,1747209198199,-1564.81,0.00041933,120]
[361038475,1747209198209,-1564.81,0.00041933,120]
[361038476,1747209198218,-1564.81,0.00041933,120]
[361038477,1747209198228,-1564.81,0.00041933,120]
[361038478,1747209198238,-1564.81,0.00041933,120]
[361038479,1747209198248,-1565.02435218,0.00041933,120]
[361038480,1747209198258,-1000.0,0.00041933,30]
[361038481,1747209198268,-50000.0,0.00041933,30]
[361038482,1747209198278,-50000.0,0.00041933,31]
[361038483,1747209198288,-50000.0,0.00041933,32]
[361038484,1747209198299,-50000.0,0.00041933,33]
[361038485,1747209198310,-50000.0,0.00041933,34]
[361038486,1747209198319,-50000.0,0.00041933,35]
[361038487,1747209198329,-50000.0,0.00041933,36]
[361038488,1747209198338,-50000.0,0.00041933,37]
[361038489,1747209198348,-50000.0,0.00041933,38]
[361038490,1747209198357,-50000.0,0.00041933,39]
[361038491,1747209198366,-158.5,0.00041933,30]
[361038492,1747209198377,-1134.0,0.00041933,120]
[361038493,1747209198387,-193.0,0.00041933,120]
[361038494,1747209198399,-1000.0,0.00041933,30]
[361038495,1747209198408,-802.91016971,0.00041933,90]
[361038496,1747209198417,-1332.81166511,0.00041933,120]
[361038497,1747209198428,-212.26893463,0.00041933,30]
[361038498,1747209198439,-171.08261569,0.00041933,120]
[361038499,1747209198448,-861.70997908,0.00041933,30]
[361038500,1747209198457,-559.13915315,0.00041933,91]
[361038501,1747209198467,-1049.90574654,0.00041933,30]
[361038502,1747209198478,-321.51033707,0.00041933,30]
[361038503,1747209198488,-1398.66709817,0.00041933,120]
[361038504,1747209198497,-407.49652459,0.00041933,120]
[361038505,1747209198506,-653.98976527,0.00041933,120]
[361038506,1747209198516,-462.25880484,0.00041933,120]
[361038507,1747209198526,-400.8560382,0.00041933,30]
[361038508,1747209198536,-321.16759311,0.00041933,30]
[361038509,1747209198545,-170.33630747,0.00041933,7]
[361038510,1747209198556,-455.59491716,0.00041933,120]
[361038511,1747209198567,-248.11233484,0.00041933,120]
[361038512,1747209198577,-1005.94663957,0.00041933,120]
[361038513,1747209198587,-325.95442074,0.00041933,60]
[361038514,1747209198597,-3000.0,0.00041933,120]
[361038515,1747209198607,-1179.51129763,0.00041933,90]
[361038516,1747209198617,-500.53488765,0.00041933,120]
[361038517,1747209198628,-483.61070973,0.00041933,60]
[361038518,1747209198637,-730.73163673,0.00041933,120]
[361038519,1747209198647,-476.49432868,0.00041933,30]
[361038520,1747209198657,-396.99051045,0.00041933,120]
[361038521,1747209198667,-393.02215945,0.00041933,120]
[361038522,1747209198677,-1993.01641264,0.00041933,120]
[361038523,1747209198687,-2071.5456626,0.00041933,30]
[361038524,1747209198696,-336.57156803,0.00041933,120]
[361038525,1747209198706,-441.62201789,0.00041933,60]
[361038526,1747209198716,-9980.0,0.00041933,60]
[361038527,1747209198726,-158.51370425,0.00041933,30]
[361038528,1747209198736,-447.79722176,0.00041933,120]
[361038529,1747209198746,-778.83444487,0.00041933,120]
[361038530,1747209198755,-164.49238468,0.00041933,31]
[361038531,1747209198765,-1932.92012485,0.00041933,120]
[361038532,1747209198775,-450.09038729,0.00041933,120]
[361038533,1747209198788,-4896.66819834,0.00041933,2]
[361038534,1747209198799,-258.28607781,0.00041933,120]
[361038535,1747209198809,-194.12005035,0.00041933,30]
[361038536,1747209198818,-235.91864004,0.00041933,30]
[361038537,1747209198828,-279.47734277,0.00041933,30]
[361038538,1747209198838,-261.99951003,0.00041933,30]
[361038539,1747209198847,-1942.63581991,0.00041933,120]
[361038540,1747209198856,-160.4758028,0.00041933,30]
[361038541,1747209198865,-168.29375715,0.00041933,30]
[361038542,1747209198875,-1459.03250218,0.00041933,30]
[361038543,1747209198884,-409.94105179,0.00041933,120]
[361038544,1747209198894,-228.93230502,0.00041933,60]
[361038545,1747209198903,-197.48658633,0.00041933,2]
[361038546,1747209198912,-422.41673414,0.00041933,30]
[361038547,1747209198922,-346.27177311,0.00041933,30]
[361038548,1747209198931,-2274.87356845,0.00041933,120]
[361038549,1747209198941,-161.71621874,0.00041933,30]
[361038550,1747209198951,-205.48136797,0.00041933,30]
[361038551,1747209198960,-2653.87801724,0.00041933,30]
[361038552,1747209198970,-749.7989136,0.00041933,120]
[361038553,1747209198979,-816.51932999,0.00041933,120]
[361038554,1747209198988,-346.85187328,0.00041933,30]
[361038555,1747209198998,-382.24294691,0.00041933,120]
[361038556,1747209199007,-182.09077722,0.00041933,30]
[361038557,1747209199016,-541492.54386971,0.00041933,30]
[361038558,1747209199026,-958.2549596,0.00041933,120]
[361038559,1747209199035,-597.65578398,0.00041933,30]
[361038560,1747209199045,-1394.35712353,0.00041933,30]
[361038561,1747209199056,-2251.04404659,0.00041933,30]
[361038562,1747209199066,-1260.34324224,0.00041933,60]
[361038563,1747209199076,-763.21062903,0.00041933,120]
[361038564,1747209199086,-338.08127295,0.00041933,30]
[361038565,1747209199095,-2184.64460661,0.00041933,120]
[361038566,1747209199105,-312.6645446,0.00041933,120]
[361038567,1747209199114,-1225.96751576,0.00041933,30]
[361038568,1747209199124,-625.14324536,0.00041933,30]
[361038569,1747209199133,-295.29245376,0.00041933,30]
[361038570,1747209199143,-855.71989837,0.00041933,120]
[361038571,1747209199152,-1405.05066055,0.00041933,2]
[361038572,1747209199162,-218.68011391,0.00041933,120]
[361038573,1747209199171,-1702.92243612,0.00041933,120]
[361038574,1747209199181,-347.8711426,0.00041933,120]
[361038575,1747209199190,-468.57687762,0.00041933,120]
[361038576,1747209199200,-485.91226439,0.00041933,120]
[361038577,1747209199209,-231.83574279,0.00041933,120]
[361038578,1747209199219,-4911.5864428,0.00041933,2]
[361038579,1747209199228,-812.77071711,0.00041933,120]
[361038580,1747209199238,-500.00273666,0.00041933,2]
[361038581,1747209199247,-181.43713937,0.00041933,120]
[361038582,1747209199257,-2009.29306185,0.00041933,45]
[361038583,1747209199266,-264.70915592,0.00041933,120]
[361038584,1747209199275,-830.85255124,0.00041933,30]
[361038585,1747209199284,-433.2976134,0.00041933,60]
[361038586,1747209199293,-631.54,0.00041933,120]
[361038587,1747209199305,-214.11262542,0.00041933,120]
[361038588,1747209199315,-500.0,0.00041933,30]
[361038589,1747209199324,-641.21259693,0.00041933,35]
[361038590,1747209199333,-159.0,0.00041933,30]
[361038591,1747209199343,-922.0,0.0004197,120]
[361038592,1747209199352,-1577.0,0.0004197,120]
[361038593,1747209199361,-684.0,0.0004197,120]
[361038594,1747209199372,-1577.0,0.0004197,120]
[361038595,1747209199381,-389.0,0.0004197,120]
[361038596,1747209199392,-922.0,0.0004197,120]
[361038597,1747209199404,-684.0,0.0004197,120]
[361038598,1747209199414,-389.0,0.0004197,120]
[361038599,1747209199424,-922.0,0.0004198,120]
[361038600,1747209199434,-1577.0,0.0004198,120]
[361038601,1747209199443,-684.0,0.0004198,120]
[361038602,1747209199452,-1577.0,0.0004198,120]
[361038603,1747209199461,-389.0,0.0004198,120]
[361038604,1747209199473,-922.0,0.0004198,120]
[361038605,1747209199482,-684.0,0.0004198,120]
[361038606,1747209199491,-389.0,0.0004198,120]
[361038607,1747209199501,-684.0,0.0004198,120]
[361038608,1747209199511,-389.0,0.0004198,120]
[361038609,1747209199520,-922.0,0.0004198,120]
[361038610,1747209199529,-687.98,0.0004198,120]
[361038611,1747209199539,-925.16,0.0004198,120]
[361038612,1747209199549,-398.45,0.0004198,120]
[361038613,1747209199559,-1577.0,0.0004198,120]
[361038614,1747209199569,-1584.25,0.0004198,120]
[361038615,1747209199579,-150.0,0.00041984,120]
[361038616,1747209199589,-922.0,0.0004199,120]
[361038617,1747209199599,-684.0,0.0004199,120]
[361038618,1747209199609,-1577.0,0.0004199,120]
[361038619,1747209199619,-254.23,0.0004199,120]
[361038620,1747209199629,-1577.0,0.0004199,120]
[361038621,1747209199638,-389.0,0.0004199,120]
[361038622,1747209199648,-922.0,0.0004199,120]
[361038623,1747209199657,-684.0,0.0004199,120]
[361038624,1747209199667,-389.0,0.0004199,120]
[361038625,1747209199676,-684.0,0.0004199,120]
[361038626,1747209199803,-389.0,0.0004199,120]
[361038627,1747209199813,-922.0,0.0004199,120]
[361038628,1747209199823,-684.0,0.0004199,120]
[361038629,1747209199833,-922.0,0.0004199,120]
[361038630,1747209199843,-389.0,0.0004199,120]
[361038631,1747209199852,-1577.0,0.0004199,120]
[361038632,1747209199862,-1577.0,0.0004199,120]
[361038633,1747209199871,-50000.0,0.00042,42]
[361038634,1747209199881,-356405.75317073,0.00042,2]
[361038635,1747209199890,-3513.33359867,0.00042,60]
[361038636,1747209199900,-64772.67564272,0.00042,14]
[361038637,1747209199910,-373.04124757,0.00042,120]
[361038638,1747209199919,-472.48140432,0.00042,120]
[361038639,1747209199928,-479.93001901,0.00042,30]
[361038640,1747209199938,-950.89131407,0.00042,120]
[361038641,1747209199947,-1133.80084097,0.00042,120]
[361038642,1747209199957,-319.3561595,0.00042,30]
[361038643,1747209199968,-297.968629,0.00042,120]
[361038644,1747209199978,-2000.0,0.00042,120]
[361038645,1747209199988,-327.478839,0.00042,120]
[361038646,1747209199999,-500.0,0.00042,120]
[361038647,1747209200009,-1250.0,0.00042,2]
[361038648,1747209200018,-213.0,0.00042,2]
[361038649,1747209200028,-1340.64952164,0.0004201,2]
[361038650,1747209200037,-582.0,0.000421,3]
[361038651,1747209200048,-150.0,0.0004212,120]
[361038652,1747209200057,-345.77194931,0.00042121,120]
[361038653,1747209200067,-900.0,0.00042191,60]
[361038654,1747209200077,-2400.0,0.00042191,60]
[361038655,1747209200087,-350.0,0.00042192,10]
[361038656,1747209200098,-150.0,0.00042299,120]
[361038657,1747209200109,-160.0,0.000423,43]
[361038658,1747209200118,-160.0,0.000423,43]
[361038659,1747209200128,-470.15,0.00042304,2]
[361038660,1747209200138,-837.885,0.00042465,12]
[361038661,1747209200147,-651.66,0.00042465,120]
[361038662,1747209200156,-179.8003143,0.000425,120]
[361038663,1747209200166,-150.0,0.00042504,120]
[361038664,1747209200175,-522.85353971,0.000427,2]
[361038665,1747209200184,-900.0,0.00042739,60]
[361038666,1747209200194,-2400.0,0.00042739,60]
[361038667,1747209200204,-450.0,0.0004274,10]
[361038668,1747209200214,-515354.80958526,0.00042789,2]
[361038669,1747209200223,-2253.78530989,0.000428,120]
[361038670,1747209200233,-41382.46003236,0.000429,5]
[361038671,1747209200242,-154.95754952,0.000429,120]
[361038672,1747209200252,-154.95754952,0.000429,120]
[361038673,1747209200261,-154.95754952,0.000429,120]
[361038674,1747209200270,-154.95754952,0.000429,120]
[361038675,1747209200280,-154.95754952,0.000429,120]
[361038676,1747209200290,-50000.0,0.00043,43]
[361038677,1747209200300,-214.0,0.00043,7]
[361038678,1747209200310,-1947.22542388,0.00043,120]
[361038679,1747209200319,-900.0,0.00043,44]
[361038680,1747209200329,-19112.0,0.00043,120]
[361038681,1747209200338,-290.502551,0.00043,120]
[361038682,1747209200347,-272.76996698,0.00043,120]
[361038683,1747209200358,-878.43,0.00043,120]
[361038684,1747209200367,-1550.66,0.00043,120]
[361038685,1747209200377,-150.0,0.00043027,120]
[361038686,1747209200387,-150.0,0.00043094,120]
[361038687,1747209200398,-259.36056,0.000432,120]
[361038688,1747209200408,-284.64328,0.000432,120]
[361038689,1747209200418,-900.0,0.00043287,60]
[361038690,1747209200428,-2400.0,0.00043287,60]
[361038691,1747209200438,-496.12686595,0.00043287,120]
[361038692,1747209200448,-550.0,0.00043288,10]
[361038693,1747209200460,-160.0,0.000433,47]
[361038694,1747209200471,-160.0,0.000433,47]
[361038695,1747209200482,-150.0,0.00043317,120]
[361038696,1747209200492,-500.0,0.00043401,120]
[361038697,1747209200501,-677.26794923,0.0004347,30]
[361038698,1747209200512,-2000.0,0.000435,120]
[361038699,1747209200523,-512.0,0.0004358,2]
[361038700,1747209200532,-210.0,0.0004358,2]
[361038701,1747209200543,-1101.08,0.000436,120]
[361038702,1747209200553,-501.49,0.000436,120]
[361038703,1747209200563,-31436.26925464,0.00043643,2]
[361038704,1747209200574,-1874.37100805,0.000437,120]
[361038705,1747209200583,-483.71467276,0.000438,30]
[361038706,1747209200593,-1526.3209518,0.000438,120]
[361038707,1747209200603,-725.81857718,0.000438,120]
[361038708,1747209200613,-900.0,0.00043835,120]
[361038709,1747209200622,-2400.0,0.00043835,120]
[361038710,1747209200632,-152.0993085,0.00043835,60]
[361038711,1747209200642,-651.66,0.00043835,120]
[361038712,1747209200652,-309.56078674,0.00043835,2]
[361038713,1747209200662,-726.64797398,0.00043835,120]
[361038714,1747209200672,-541.9,0.00043835,120]
[361038715,1747209200682,-400.0,0.00043836,10]
[361038716,1747209200691,-650.0,0.00043836,10]
[361038717,1747209200701,-500.0,0.00043836,18]
[361038718,1747209200711,-1576.29462,0.00043836,120]
[361038719,1747209200721,-150.0,0.0004392,120]
[361038720,1747209200731,-50000.0,0.00044,44]
[361038721,1747209200741,-4023.18947466,0.00044,5]
[361038722,1747209200751,-131640.41233454,0.00044,10]
[361038723,1747209200760,-938.90059872,0.00044,10]
[361038724,1747209200771,-2978.75150228,0.00044,3]
[361038725,1747209200781,-899.99999907,0.00044,45]
[361038726,1747209200791,-1300.0,0.00044,2]
[361038727,1747209200801,-4000.0,0.00044,8]
[361038728,1747209200810,-150.0,0.00044089,120]
[361038729,1747209200820,-150.0,0.00044129,120]
[361038730,1747209200830,-150.0,0.00044143,120]
[361038731,1747209200839,-150.0,0.00044251,120]
[361038732,1747209200848,-160.0,0.000443,51]
[361038733,1747209200858,-160.0,0.000443,51]
[361038734,1747209200867,-284.64328,0.000443,120]
[361038735,1747209200877,-150.0,0.00044338,120]
[361038736,1747209200886,-900.0,0.00044383,120]
[361038737,1747209200895,-2400.0,0.00044383,120]
[361038738,1747209200906,-150.0,0.00044384,30]
[361038739,1747209200917,-293.88054847,0.00044384,30]
[361038740,1747209200927,-249.91751949,0.00044384,30]
[361038741,1747209200938,-150.0,0.00044384,30]
[361038742,1747209200949,-150.0,0.00044384,30]
[361038743,1747209200958,-150.0,0.00044384,30]
[361038744,1747209200968,-150.0,0.00044384,30]
[361038745,1747209200978,-150.0,0.00044384,30]
[361038746,1747209200988,-150.0,0.00044384,30]
[361038747,1747209200998,-150.0,0.00044384,30]
[361038748,1747209201008,-150.0,0.00044384,30]
[361038749,1747209201018,-150.0,0.00044384,30]
[361038750,1747209201027,-750.0,0.00044384,10]
[361038751,1747209201037,-200.0,0.00044384,14]
[361038752,1747209201046,-200.0,0.00044384,14]
[361038753,1747209201057,-3600.0,0.000444,2]
[361038754,1747209201066,-2000.0,0.000444,2]
[361038755,1747209201075,-201856.34997157,0.00044433,120]
[361038756,1747209201085,-293.88054847,0.00044433,30]
[361038757,1747209201096,-249.91751949,0.00044433,30]
[361038758,1747209201106,-150.0,0.00044444,30]
[361038759,1747209201116,-150.0,0.00044464,30]
[361038760,1747209201125,-293.88054847,0.00044483,30]
[361038761,1747209201135,-249.91751949,0.00044483,30]
[361038762,1747209201145,-152.68863,0.000445,7]
[361038763,1747209201154,-150.0,0.00044504,30]
[361038764,1747209201164,-150.0,0.00044504,120]
[361038765,1747209201174,-150.0,0.00044505,30]
[361038766,1747209201183,-1075.0,0.00044507,30]
[361038767,1747209201193,-1075.0,0.00044507,30]
[361038768,1747209201202,-541.9,0.0004452,120]
[361038769,1747209201212,-150.0,0.00044529,30]
[361038770,1747209201222,-293.88054847,0.00044533,30]
[361038771,1747209201231,-249.91751949,0.00044533,30]
[361038772,1747209201240,-150.0,0.00044545,30]
[361038773,1747209201250,-150.0,0.00044566,30]
[361038774,1747209201259,-470.15,0.00044567,2]
[361038775,1747209201269,-293.88054847,0.00044583,30]
[361038776,1747209201279,-249.91751949,0.00044583,30]
[361038777,1747209201289,-150.0,0.00044588,120]
[361038778,1747209201300,-150.0,0.000446,120]
[361038779,1747209201309,-150.0,0.00044616,120]
[361038780,1747209201320,-150.0,0.00044618,30]
[361038781,1747209201330,-150.0,0.00044624,30]
[361038782,1747209201339,-150.0,0.00044626,30]
[361038783,1747209201349,-150.0,0.00044627,30]
[361038784,1747209201359,-293.88054847,0.00044633,30]
[361038785,1747209201369,-249.91751949,0.00044633,30]
[361038786,1747209201379,-150.0,0.00044643,30]
[361038787,1747209201389,-150.0,0.00044674,30]
[361038788,1747209201401,-293.88054847,0.00044682,30]
[361038789,1747209201412,-249.91751949,0.00044682,30]
[361038790,1747209201422,-150.0,0.00044688,30]
[361038791,1747209201432,-152.68863,0.000447,7]
[361038792,1747209201443,-823.69764667,0.000447,120]
[361038793,1747209201452,-1795.19199393,0.000447,120]
[361038794,1747209201462,-1158.87,0.000447,30]
[361038795,1747209201472,-1156.1,0.000447,30]
[361038796,1747209201481,-150.0,0.00044707,30]
[361038797,1747209201492,-293.88054847,0.00044732,30]
[361038798,1747209201501,-249.91751949,0.00044732,30]
[361038799,1747209201511,-150.0,0.00044744,30]
[361038800,1747209201521,-150.0,0.00044749,30]
[361038801,1747209201531,-1032.60543641,0.00044763,10]
[361038802,1747209201540,-293.88054847,0.00044782,30]
[361038803,1747209201551,-249.91751949,0.00044782,30]
[361038804,1747209201562,-150.0,0.00044788,30]
[361038805,1747209201571,-500.0,0.00044802,120]
[361038806,1747209201582,-150.0,0.0004481,30]
[361038807,1747209201591,-150.0,0.00044819,30]
[361038808,1747209201601,-293.88054847,0.00044832,30]
[361038809,1747209201611,-249.91751949,0.00044832,30]
[361038810,1747209201621,-150.0,0.00044832,30]
[361038811,1747209201632,-150.0,0.00044853,30]
[361038812,1747209201642,-150.0,0.00044865,30]
[361038813,1747209201653,-150.0,0.00044869,30]
[361038814,1747209201663,-150.0,0.00044871,30]
[361038815,1747209201672,-150.0,0.00044877,30]
[361038816,1747209201682,-293.88054847,0.00044882,30]
[361038817,1747209201692,-249.91751949,0.00044882,30]
[361038818,1747209201702,-1909.0197573,0.000449,7]
[361038819,1747209201711,-2000.0,0.000449,30]
[361038820,1747209201722,-2000.0,0.000449,30]
[361038821,1747209201733,-2000.0,0.000449,30]
[361038822,1747209201742,-1082.1916,0.000449,30]
[361038823,1747209201752,-2000.0,0.000449,30]
[361038824,1747209201761,-152.68863,0.000449,7]
[361038825,1747209201771,-233.29645857,0.000449,30]
[361038826,1747209201781,-164.5811294,0.000449,120]
[361038827,1747209201791,-164.58112939,0.000449,120]
[361038828,1747209201803,-164.58112939,0.000449,120]
[361038829,1747209201812,-164.58112939,0.000449,120]
[361038830,1747209201822,-164.58112939,0.000449,120]
[361038831,1747209201832,-164.58112939,0.000449,120]
[361038832,1747209201841,-150.0,0.00044903,30]
[361038833,1747209201851,-900.0,0.00044931,120]
[361038834,1747209201862,-2400.0,0.00044931,120]
[361038835,1747209201872,-293.88054847,0.00044931,30]
[361038836,1747209201882,-249.91751949,0.00044931,30]
[361038837,1747209201892,-150.0,0.00044931,30]
[361038838,1747209201902,-850.0,0.00044932,10]
[361038839,1747209201911,-150.0,0.00044949,30]
[361038840,1747209201921,-150.0,0.00044964,30]
[361038841,1747209201931,-293.88054847,0.00044981,30]
[361038842,1747209201940,-249.91751949,0.00044981,30]
[361038843,1747209201950,-150.0,0.00044985,30]
[361038844,1747209202244,-790.07490364,0.0004499,30]
[361038845,1747209202254,-150.0,0.00044992,30]